Cogmind - Beta 13 @@@ ROGUE MODE // 2024.04.24 @ 20:34:07 Player: AntinDisguise Result: Destroyed by G-34 Mercenary with Small Laser Performance ------------- Evolutions (0) 0 Regions Visited (1) 200 Robots Destroyed (7) 35 Value Destroyed (233) 233 Prototype IDs (0) 0 Alien Tech Used (0) 0 Bonus (0) 0 TOTAL SCORE: 468 Bonus ------- None Cogmind --------- Core Integrity 0/250 Matter 300/300 Energy 250/250 System Corruption 0% Temperature Cool (6) Movement Rolling (140) Ox4 Location -10/Materials Parts ------- > --- POWER (1) -------- Ion Engine > --- PROPULSION (2) --- Wheel > --- UTILITY (2) ------ High-capacity Storage Unit Power Shielding > --- WEAPON (2) ------- (None) > --- INVENTORY (20) --- Light Treads Light Treads Sensor Array Peak State ------------ > --- POWER ------------ Light Ion Engine > --- PROPULSION ------- Wheel Compact Wheel > --- UTILITY ---------- Small Storage Unit High-capacity Storage Unit > --- WEAPON ----------- EM Pulse Gun Light Assault Rifle > --- INVENTORY -------- Light Treads Light Treads Grenade Launcher [Rating: 7] Favorites ----------- Power Light Ion Engine Engine Light Ion Engine Propulsion Wheel Wheel Wheel Utility High-capacity Storage Unit Storage High-capacity Storage Unit Protection Power Shielding Weapon Light Assault Rifle Energy Gun EM Pulse Gun Ballistic Gun Light Assault Rifle Launcher Grenade Launcher Special Weapon Mining Laser Build | -11 -10 ------- Run | Yrd Mat Slots Evolved . | . . Power . | . . Propulsion . | . . Utility . | . . Weapon . | . . Parts Attached 12 | 6 6 Power 2 | 1 1 Engine 2 | 1 1 Core . | . . Reactor . | . . Propulsion 2 | 2 . Treads . | . . Leg . | . . Wheel 2 | 2 . Hover . | . . Flight . | . . Utility 3 | 1 2 Device . | . . Storage 2 | 1 1 Processor . | . . Hackware . | . . Protection 1 | . 1 Artifact . | . . Weapon 5 | 2 3 Energy Gun 1 | 1 . Energy Cannon . | . . Ballistic Gun 1 | 1 . Ballistic Cannon . | . . Launcher 1 | . 1 Special Weapon 2 | . 2 Impact Weapon . | . . Slashing Weapon . | . . Piercing Weapon . | . . Special Melee Weapon . | . . Unidentified Prototypes . | . . Parts Lost 7 | . 7 Power 1 | . 1 Propulsion 1 | . 1 Utility . | . . Weapon 5 | . 5 Highest Loss Streak 4 | . 4 To Critical Strikes . | . . Average Slot Usage (%) 64 | . 64 Engine 6 | . 6 Wheel 17 | . 17 Storage 14 | . 14 Protection 8 | . 8 Energy Gun 3 | . 3 Ballistic Gun 8 | . 8 Special Weapon 3 | . 3 Naked Turns . | . . Heaviest Build 47 | 11 47 Greatest Support 26 | 26 26 Greatest Overweight (x) 4 | . 4 Average Overweight (x) 2 | . 2 Largest Inventory Capacity 20 | 8 20 Average Capacity 17 | 6 18 Most Carried 5 | 5 5 Average Carried 2 | 2 2 Final Capacity 20 | 8 20 Final Carried 3 | 2 3 Class Distribution -------------------- 100% | Mutant Dominant Class ---------------- Mutant | -10/Materials Resources | -11 -10 ----------- Run | Yrd Mat Matter Collected 354 | 260 94 Remotely . | . . Salvage Created 143 | . 143 Parts 15 | . 15 Haulers Intercepted . | . . Recyclers Shooed . | . . Parts Field Recycled . | . . Retrieved Matter . | . . Parts Self-Destructed . | . . Prevented . | . . Kills | -11 -10 ------- Run | Yrd Mat Combat Hostiles Destroyed 3 | . 3 Guns 1 | . 1 Cannons 1 | . 1 AOE 1 | . 1 Classes Destroyed 4 | . 4 Worker 1 | . 1 Builder 1 | . 1 Watcher 2 | . 2 Grunt 3 | . 3 Best Kill Streak 4 | . 4 Combat Bots Only 2 | . 2 Max Kills in Single Turn 2 | . 2 Gunslinging . | . . Exploded 1 | . 1 Melee . | . . Uniques/NPCs Destroyed . | . . Combat | -11 -10 -------- Run | Yrd Mat Hostile Shots Fired 71 | . 71 Missed 23 | . 23 Damage Taken 651 | . 651 Core 254 | . 254 Absorbed by Shields . | . . Redirected to Shielding 3 | . 3 Core Remaining (%) 100 | 100 . Volleys Fired 24 | . 24 Largest 2 | . 2 Hottest 200 | . 200 Shots Fired 36 | . 36 Gun 26 | . 26 Cannon . | . . Launcher 4 | . 4 Special 6 | . 6 Kinetic 20 | . 20 Thermal 6 | . 6 Explosive 4 | . 4 Electromagnetic 6 | . 6 Robot Hit Streak 13 | . 13 Robot Miss Streak 3 | . 3 Penetration Max . | . . Secondary Targets 1 | . 1 Max Gunslinging Chain 1 | . 1 Shots Hit Robots 23 | . 23 Core Hits 12 | . 12 Critical Kills . | . . Critical Parts Destroyed . | . . Critical Strikes . | . . Melee Attacks . | . . Impact . | . . Slashing . | . . Piercing . | . . Sneak Attacks . | . . Combat Hostiles . | . . Follow-up Attacks . | . . Damage Inflicted 478 | . 478 Guns 191 | . 191 Cannons . | . . Explosions 263 | . 263 Melee . | . . Ramming . | . . Kinetic 109 | . 109 Thermal 119 | . 119 Explosive 168 | . 168 Electromagnetic 82 | . 82 Impact . | . . Slashing . | . . Piercing . | . . Highest Corruption . | . . Average Corruption . | . . Corruption Purged . | . . Corruption Blocked . | . . Overload Shots . | . . Overflow Damage . | . . Projectiles . | . . Explosions . | . . Melee . | . . Knockbacks . | . . Impact . | . . Kinetic . | . . Secondary . | . . Self-Inflicted Damage 67 | . 67 Shots 3 | . 3 Rammed . | . . Targets Rammed . | . . Kicked . | . . Crushed . | . . Highest Temperature 50 | . 50 Average Temperature 17 | . 17 Received Heat Transfer 327 | . 327 Siege Activations . | . . Robots Corrupted . | . . Combat Hostiles . | . . Parts Fried . | . . Impact Corruptions . | . . Robots Melted . | . . Combat Hostiles . | . . Parts Melted . | . . Heat Transferred 100 | . 100 Parts Sabotaged . | . . Parts Stolen . | . . Parts Stripped . | . . Power Chain Reactions 2 | . 2 Alert | -11 -10 ------- Run | Yrd Mat Peak Influence 214 | . 214 Initial . | . . Average 113 | . 124 Maximum Alert Level 1 | . 1 Low Security (%) 73 | 100 70 Level 1 26 | . 29 Level 2 . | . . Level 3 . | . . Level 4 . | . . Level 5 . | . . High Security . | . . Max Security . | . . Squads Dispatched . | . . Investigation . | . . Extermination . | . . Reinforcement . | . . Assault . | . . Garrison . | . . Intercept . | . . Searches Triggered . | . . Construction Impeded . | . . Haulers Reinforced . | . . Active Scanning Responses . | . . Cargo Convoy Interrupts . | . . Stealth | -11 -10 --------- Run | Yrd Mat Distress Signals 2 | . 2 Communications Jammed . | . . Distress Signals . | . . Times Spotted 6 | . 6 Peak Tracking Total 3 | . 3 Tactical Retreats . | . . Traps | -11 -10 ------- Run | Yrd Mat Traps Triggered . | . . Indirectly . | . . Trap Hack Attempts . | . . Triggered . | . . Disarmed . | . . Reprogrammed . | . . Reused . | . . Traps Extracted . | . . Installed . | . . Triggered . | . . Machines | -11 -10 ---------- Run | Yrd Mat Machines Disabled 8 | . 8 Max in Single Turn 7 | . 7 Machines Repaired . | . . Machines Dismantled . | . . Machines Sabotaged . | . . Overloaded Fab Kills . | . . Hacking | -11 -10 --------- Run | Yrd Mat Machines Accessed 2 | . 2 Terminals 2 | . 2 Fabricators . | . . Repair Stations . | . . Recycling Units . | . . Scanalyzers . | . . Garrison Access . | . . Total Hacks 3 | . 3 Successful 1 | . 1 Failed 2 | . 2 Catastrophic . | . . Database Lockouts . | . . Manual . | . . Terminals 3 | . 3 Fabricators . | . . Repair Stations . | . . Recycling Units . | . . Scanalyzers . | . . Garrison Access . | . . Terminal Hacks 1 | . 1 Locate Traps 1 | . 1 Fabricator Hacks . | . . Repair Station Hacks . | . . Recycling Unit Hacks . | . . Scanalyzer . | . . Garrison Access Hacks . | . . Unauthorized Hacks . | . . Terminals . | . . Fabricators . | . . Repair Stations . | . . Recycling Units . | . . Scanalyzers . | . . Garrison Access . | . . Data Cores Recovered . | . . Used . | . . Hacking Detections 2 | . 2 Full Trace Events . | . . Feedback Events . | . . Feedback Blocked . | . . Robot Schematics Acquired . | . . Robots Built . | . . Authchips . | . . Time . | . . Total Robot Build Rating . | . . Part Schematics Acquired . | . . Parts Built . | . . Authchips . | . . Time . | . . Total Part Build Rating . | . . Parts Repaired . | . . Time . | . . Parts Recycled . | . . Recycled Matter . | . . Retrieved Matter . | . . Retrieved Components . | . . Parts Scanalyzed . | . . Part Schematics Acquired . | . . Parts Damaged . | . . Bothacking | -11 -10 ------------ Run | Yrd Mat Used RIF Installer . | . . Robots Hacked . | . . Non-combat . | . . Combat . | . . Robot Hacks Applied . | . . Relay Couplers Released . | . . Fabnet Peak Effective % . | . . Robots Rewired . | . . Allies Hacked . | . . Hacks Repelled . | . . Allies | -11 -10 -------- Run | Yrd Mat Total Allies . | . . Largest Group . | . . Highest-Rated Group . | . . Highest-Rated Ally . | . . Total Orders . | . . Ally Attacks . | . . Total Damage . | . . Kills . | . . Allies Corrupted . | . . Allies Melted . | . . Intel | -11 -10 ------- Run | Yrd Mat Robot Analysis Total . | . . Derelict Logs Recovered . | . . Drone Launches . | . . Drone Recoveries . | . . Exploration | -11 -10 ------------- Run | Yrd Mat Turns Passed 474 | 43 431 Spaces Moved 315 | 37 278 Core 11 | 11 . Treads . | . . Legs . | . . Wheels 304 | 26 278 Hover . | . . Flight . | . . Fastest Speed 50 | 50 90 Average Speed 118 | 78 123 Slowest Speed 140 | 90 140 Overloaded Moves . | . . Propulsion Burnouts . | . . Robots Hopped . | . . Cave-ins Triggered . | . . Exploration Rate (%) 29 | 3 55 Regions Visited 1 Branch Regions . Pre-discovered Areas . | . . Known Exits Taken . | . . Unknown Exits Taken 1 | 1 . Scrap Searched . | . . Spaces Dug 4 | . 4 Terrain Destroyed 21 | . 21 Melee . | . . Projectile 5 | . 5 AOE 16 | . 16 Terrain Rammed . | . . Walls Destroyed . | . . Machines Disabled . | . . Actions | -11 -10 --------- Run | Yrd Mat Total 372 | 50 322 Wait 4 | . 4 Move 314 | 36 278 Hop . | . . Pick Up 16 | 8 8 Fast Attach . | . . Attach 12 | 6 6 Detach . | . . Swap . | . . Drop 2 | . 2 Fire 24 | . 24 Melee . | . . Ram . | . . Kick . | . . Crush . | . . Escape Stasis . | . . Rewire . | . . Trap . | . . Miscellaneous . | . . Route ------- -11/Scrapyard -10/Materials (discovered 2 exits: [*Mat] / [*Min]) History --------- Turn | Location | Event 27 | -11/Scrapyard | Discovered new exit (range 15) 44 | -11/Scrapyard | Entered Materials 216 | -10/Materials | Lost 4 parts (1p1n2w) 220 | -10/Materials | Discovered new exit (range 13) 314 | -10/Materials | Build established: Mutant 316 | -10/Materials | Discovered new exit (range 11) 348 | -10/Materials | Core integrity fell below 50% 432 | -10/Materials | Core integrity fell below 20% 475 | -10/Materials | Destroyed by G-34 Mercenary with Small Laser Last Messages --------------- U-05 Engineer builds a Wall. U-05 Engineer lays Concrete. Acquired Sensor Array. K-01 Serf cleans the Neutrino Reactor. Lgt. Assault Rifle destroyed. Acquired data core, dynamic key expired. EXIT=FOUND Acquired 14 matter. Acquired Mining Laser. Connecting with Terminal... >>Traps(Locate) Found 4 traps in 2 arrays: 1x Alarm Trap 3x Alarm Trap Map updated. G-34 Mercenary destroyed. Mining Laser destroyed. Acquired 10 matter. Acquired Ion Engine. Acquired 10 matter. Map ----- +----------------------------------------------------+ | ## """ #?????? #????????????????????????? | | ## """ #?????? #????+####???????????????? | | ## #?????? #??? ????????????????? | | ##! !#?????? #?## #?????????????????? | | ########?????? + #?????????????????? | | #??###???????? # #?????????????????? | | ####"##########+# #?????????????????? | | / #?????????????????? | | #####"### +?????????????????? | | #""!" ""# #?????????????????? | | # "!" " # ##+########?????????????????? | | # # # #??????????????????? | | # #??????????????????? | | < # #??????????????????? | | # #??????????????????? | | # ###### #??????????????????? | | #########????# ! #??????????????????? | | ?????????????# #?????????????##???? | | ?????????????# * #???????????? #??? | | ?????????????# #?????????? #??? | | ????????????###+#######?????????* #??? | | ????????????# #????########$% #??? | | ?????######## #????# =! #??? | | ?? #????# #??? | | ????######### ######%= #??? | | ^???????????# g=*%*[!@= ![ #??? | | ????????????##############+## = = #??? | | ??????????????????????????????? #######??? | | ?????????????????????????????????????????? | | ?????????????????????????????????????????? | | ?????????????????????????????????????????? | | ?????????????????????????????????????????? | | ?????????????????????????????????????????? | | ?????????????????????????????????????????? | | ?????????????????????????????????????????? | | ?????????????????????????????????????????? | | ?????????????????????????????????????????? | | ?????????????????????????????????????????? | | ?????????????????????????????????????????? | | ?????????????????????????????????????????? | | ?????????????????????????????????????????? | | ?????????????????????????????????????????? | | ?????????????????????????????????????????? | | ?????????????????????????????????????????? | | ?????????????????????????????????????????? | | ?????????????????????????????????????????? | | ?????????????????????????????????????????? | | ?????????????????????????????????????????? | | ?????????????????????????????????????????? | | ?????????????????????????????????????????? | +----------------------------------------------------+ Best States ------------- Heat Dissipation 25 Energy Generation 10 Energy Capacity 250 Matter Stores 300 Matter Capacity 300 Sight Range 16 Terrain Scan Density 10 Power Shielding 33 Evasion (%) 50 Item Schematics ----------------- None Robot Schematics ------------------ None Fabricated ------------ Nothing Alien Tech Used ----------------- None Achievements -------------- None Challenges ------------ None Game ------ Seed SubatomicAnalysisShotgun Manual? 0 Play Time 00:08:17 Cumulative 26.1 hours Start 2024.04.24 @ 20:29:29 End 2024.04.24 @ 20:34:07 Sessions 1 Manual Loads 0 Difficulty Rogue Special Mode None Game No. 72 Rogue 70 Adventurer 2 Explorer 0 Win Type - Total 0 Types 0/0/0/0/0/0/0/0/0 Lore% 22 Gallery% 30 Achievement% 23 Wizard Run 0 Options --------- Layout 1 ASCII 0 Keyboard 0 Movement Mouse Keybinds 0 Fullscreen 1 Font 16/SmallcapsGlow Map View 27x19 Zoom Use 99% Tactical HUD 0 Map Filters NONE Filters NONE Steam 1 RUN: 77def5d1-2dd4-4332-bab9-79a323cfabfa